[Event "Charlotte IM-D May 2022"]
[Site "Charlotte"]
[Date "2022.05.08"]
[Round "8.3"]
[White "Wang, Eigen"]
[Black "Nakada, Akira"]
[Result "1-0"]
[ECO "B10"]
[WhiteElo "2269"]
[BlackElo "2324"]
[Annotator "TA"]
[PlyCount "95"]
[EventDate "2022.05.04"]
[EventType "tourn"]
[EventCountry "USA"]
[SourceTitle "playchess.com"]
[Source "ChessBase"]
[SourceQuality "1"]
[TimeControl "5400+30"]

{[%evp 9,95,-2,0,0,6,-13,-5,-13,0,0,0,-16,12,0,6,7,0,0,0,-20,9,0,0,7,2,8,38,20,45,43,33,37,32,35,28,35,66,35,63,45,71,33,40,38,27,0,0,0,33,28,41,23,37,-22,0,0,112,127,146,138,141,134,207,196,274,275,337,289,340,341,481,404,531,531,484,477,470,462,6215,6215,5210,1203,29987,29988,29988,29989,29989,29990]} 1. e4 {[%emt 0:00:12]} c6 {[%emt 0:01:02]} 2. Nf3 {[%emt 0:00:12]} d5 {[%emt 0:00:05]} 3. exd5 {[%emt 0:00:13]} cxd5 {[%emt 0:00:05]} 4. Ne5 {[%emt 0:00:09]} Nc6 {[%emt 0:02:03]} 5. d4 {[%emt 0:00:43]} e6 {[%emt 0:06:26]} 6. Bb5 {[%emt 0:00:52] B10: Caro-Kann: 2 d3 and 2 c4.} Bd7 {[%emt 0:03:13]} 7. Bxc6 {[%emt 0:02:25]} Bxc6 {[%emt 0:01:53]} 8. O-O {[%emt 0:00:24] The position is equal.} Nf6 {[%emt 0:00:41]} 9. c3 {[%emt 0:02:49]} Be7 {[%emt 0:00:36]} 10. Bg5 {[%emt 0:01:28]} Rc8 {[%emt 0:00:35]} 11. Nd2 {[%emt 0:00:46]} O-O {[%emt 0:00:10]} 12. Re1 {[%emt 0:00:53]} a5 {[%emt 0:10:50]} 13. Nf1 {[%emt 0:04:55]} b5 {[%emt 0:05:00] [#]} 14. Rc1 $146 {[%emt 0:06:51]} ({Predecessor:} 14. a3 Ne4 15. Bxe7 Qxe7 16. Nd2 Nd6 17. Qf3 Qc7 18. Nd3 Nc4 19. Nb3 Rfe8 20. Qg3 Qxg3 21. hxg3 {1-0 (47) Hernandez,E (2261)-Prieto Aranguren,A (2261) San Sebastian 2018}) 14... Bb7 {[%emt 0:06:43]} 15. Qf3 {[%emt 0:04:43]} Ne4 {[%emt 0:02:41]} 16. Bxe7 {[%emt 0:00:53]} Qxe7 {[%emt 0:00:05]} 17. Qf4 {[%emt 0:06:22]} Ba6 {[%emt 0:08:56]} 18. Ng3 {[%emt 0:10:31]} Nxg3 {[%emt 0:07:44]} 19. hxg3 {[%emt 0:00:17]} b4 {[%emt 0:00:06]} 20. cxb4 {[%emt 0:13:58]} Qxb4 {[%emt 0:00:06]} 21. Nd7 {[%emt 0:01:07]} Rfe8 {[%emt 0:03:23]} 22. Nc5 {[%emt 0:04:10]} Qb6 {[%emt 0:06:04]} 23. b3 {[%emt 0:02:53]} f6 {[%emt 0:06:01]} 24. Qg4 {[%emt 0:08:24] White is more active.} Qd6 {[%emt 0:06:08]} 25. f4 {[%emt 0:08:06]} ({But not} 25. Nxe6 $2 {[#]} Rxe6 $1 {[%mdl 512]} 26. Rxe6 Rxc1+ $19) 25... Re7 {[%emt 0:05:09]} 26. Kh2 {[%emt 0:01:25][%cal Re1e6]} Rce8 {[%emt 0:00:30]} 27. Qf3 {[%emt 0:01:14]} Bc8 $1 {[%emt 0:00:22]} 28. Red1 {[%emt 0:03:05]} Kh8 {[%emt 0:04:15]} 29. Qc3 {[%emt 0:01:13]} e5 {[%emt 0:01:30]} 30. Nd3 {[%emt 0:05:11] [#] Threatens to win with Qxc8.} Bg4 {[%emt 0:00:18] Hoping for ...exf4.} 31. Re1 {[%emt 0:00:45]} ({Better is} 31. fxe5 $14 fxe5 32. Re1) 31... e4 {[%emt 0:00:06]} 32. Nf2 $36 {[%emt 0:01:27][%mdl 2048] White is more active.} f5 {[%emt 0:00:25]} (32... Be6 $11 {keeps the balance.}) 33. Qxa5 $16 {[%emt 0:00:34] White stays focused until the end.} g5 {[%emt 0:09:31]} 34. fxg5 {[%emt 0:01:04]} h6 {[%emt 0:00:25]} 35. Qc5 {[%emt 0:01:38]} Qg6 {[%emt 0:00:50]} (35... Qe6 $16) 36. Nxg4 {[%emt 0:01:20]} fxg4 {[%emt 0:00:31]} (36... Qh5+ {was called for.} 37. Kg1 Qxg4) 37. Qxd5 $18 {[%emt 0:00:28]} hxg5 {[%emt 0:00:06]} 38. Kg1 {[%emt 0:00:36]} e3 {[%emt 0:02:27]} 39. Rc6 {[%emt 0:02:19][%cal Bc1c6,Bc6h6,Bh6g6][%mdl 32]} Qg7 {[%emt 0:00:04]} (39... Re6 {was worth a try.} 40. Rxe6 Rxe6) 40. Qf5 {[%emt 0:01:57]} Qxd4 {[%emt 0:01:58]} 41. Rh6+ {[%emt 0:00:20]} Kg8 {[%emt 0:00:02]} 42. Qxg5+ {[%emt 0:00:23]} Rg7 {[%emt 0:00:20]} 43. Qh5 {[%emt 0:00:17][%cal Rh5e8]} ({Don't do} 43. Rh8+ Kxh8 44. Qh5+ Rh7 45. Qxe8+ Kg7 46. Qxe3 Qxe3+ 47. Rxe3 Kh6 $18) 43... Rf7 {[%emt 0:01:06]} (43... e2+ $142 44. Kh2 Rf7 45. Rg6+ Kf8 46. Rxg4 Rh7 47. Rxd4 Rxh5+ 48. Rh4 Rhe5 49. Rh8+ Kf7 50. Rxe8 Rxe8) 44. Rg6+ {[%emt 0:00:56]} Kf8 {[%emt 0:00:04]} 45. Qh6+ {[%emt 0:00:22]} (45. Rxg4 $142 Qf6 46. Rg6) 45... Rg7 {[%emt 0:00:20]} 46. Qh8+ {[%emt 0:00:38] White mates.} Kf7 {[%emt 0:00:05]} 47. Rxg7+ {[%emt 0:00:20]} Qxg7 {[%emt 0:03:00]} 48. Rf1+ {[%emt 0:00:12] Weighted Error Value: White=0.10 (very precise) /Black=0.37} 1-0

[Event "Charlotte IM-D May 2022"]
[Site "Charlotte"]
[Date "2022.05.08"]
[Round "8.4"]
[White "Chen, Ryo"]
[Black "Matros, Alexander"]
[Result "0-1"]
[ECO "B45"]
[WhiteElo "2265"]
[BlackElo "2339"]
[Annotator "TA"]
[PlyCount "84"]
[EventDate "2022.05.04"]
[EventType "tourn"]
[EventCountry "USA"]
[SourceTitle "playchess.com"]
[Source "ChessBase"]
[SourceQuality "1"]
[TimeControl "5400+30"]

{[%evp 16,84,33,21,62,59,59,58,76,81,81,0,0,0,0,0,56,-46,-46,-315,-314,-297,-253,-245,-227,-285,-265,-369,-371,-347,-358,-306,-201,-208,-205,-195,-177,-182,-183,-211,-216,-290,-274,-414,-439,-562,-551,-522,-557,-659,-520,-517,-488,-494,-500,-488,-465,-600,-599,-582,-581,-656,-627,-649,-677,-1089,-1045,-12840,-12839,-12844,-12841]} 1. e4 {[%emt 0:00:11]} c5 {[%emt 0:00:12]} 2. Nf3 {[%emt 0:01:27]} Nc6 {[%emt 0:00:10]} 3. d4 {[%emt 0:00:19]} cxd4 {[%emt 0:00:05]} 4. Nxd4 {[%emt 0:00:08]} Nf6 {[%emt 0:00:11]} 5. Nc3 {[%emt 0:00:27]} e6 {[%emt 0:00:06]} 6. Nxc6 {[%emt 0:01:47]} bxc6 {[%emt 0:00:17]} 7. e5 {[%emt 0:00:05]} Nd5 {[%emt 0:00:27]} 8. Ne4 {[%emt 0:00:52]} Qc7 {[%emt 0:00:35]} 9. f4 $1 {[%emt 0:01:06]} Rb8 {[%emt 0:09:42] B45: Sicilian Four Knights.} 10. c4 $1 {[%emt 0:03:39]} Bb4+ {[%emt 0:00:54]} 11. Ke2 $1 {[%emt 0:00:56]} ({But not} 11. Kf2 f5 $1 12. exf6 (12. cxd5 fxe4 13. d6 Qa5 $11) 12... Nxf6 13. Nxf6+ gxf6 $11) 11... O-O $1 {[%emt 0:14:21][%cal Of7f6] White is slightly better.} 12. cxd5 {[%emt 0:05:11]} cxd5 {[%emt 0:04:00] [#]} 13. Nf2 {[%emt 0:06:13]} (13. a3 $1 $16) 13... f6 $11 {[%emt 0:00:59]} 14. exf6 {[%emt 0:17:52]} Rxf6 {[%emt 0:01:09]} 15. Nd3 {[%emt 0:23:45] [#]} d6 $146 {[%emt 0:03:29]} ({Black should play} 15... Ba5 $11) ({Predecessor:} 15... Ba6 16. Kf2 Bxd3 17. Bxd3 Rxf4+ 18. Bxf4 Qxf4+ 19. Qf3 Qd2+ 20. Be2 Rf8 21. Rhc1 Rxf3+ 22. gxf3 Bc5+ 23. Rxc5 Qd4+ {0-1 (23) Fiedorek,M (2333)-Koziol,K (2289) Ustron 2019}) 16. g3 {[%emt 0:11:30]} (16. Be3 $14) 16... e5 $1 $15 {[%emt 1:01:53][%cal Be6e5,Be5e4][%mdl 1056] aiming for ...Bg4+. Black has compensation.} 17. Bg2 $2 {[%emt 0:06:44][%mdl 8192] [#] Loses the game.} ({White should try} 17. h3 $15) 17... e4 $1 $19 {[%emt 0:00:00] Hoping for ...Bg4+.} 18. Kf2 {[%emt 0:09:57]} Qb6+ {[%emt 0:00:00]} 19. Be3 {[%emt 0:00:57]} d4 {[%emt 0:00:00][%cal Bd5d4,Bd4e3][%mdl 32]} 20. Bxe4 {[%emt 0:01:52]} dxe3+ {[%emt 0:00:00]} 21. Kg2 {[%emt 0:00:48]} Qd4 {[%emt 0:00:00] Chess con chili.} 22. Bf3 {[%emt 0:03:35]} Bd2 {[%emt 0:00:00]} 23. Nc1 {[%emt 0:01:47]} Qxb2 {[%emt 0:00:00]} 24. Ne2 {[%emt 0:00:24] [#]} Bf5 {[%emt 0:00:00] Inhibits Rb1.} 25. Qa4 {[%emt 0:00:32]} a5 {[%emt 0:00:00]} 26. Qc4+ {[%emt 0:00:40]} Kh8 {[%emt 0:00:00]} 27. g4 {[%emt 0:00:31] [#]} Qc2 {[%emt 0:00:00]} 28. Qd4 {[%emt 0:00:41]} (28. Qxc2 Bxc2) 28... Bd3 {[%emt 0:00:00][%cal Oh7h5]} 29. g5 {[%emt 0:00:28]} (29. a3 $142) 29... Rff8 {[%emt 0:00:00]} 30. Kg3 {[%emt 0:01:06] Black is clearly winning.} Bxe2 {[%emt 0:00:00]} 31. Bxe2 {[%emt 0:00:00]} Bc3 {[%emt 0:00:00]} 32. Qc4 {[%emt 0:00:03]} Rbc8 {[%emt 0:00:00][%cal Bb8c8,Bc8c4,Bc4c2,Bc2a2,Ba2a4,Ba4f4,Bf4g4][%mdl 32]} 33. Rac1 {[%emt 0:00:32] [#]} Be1+ $1 {[%emt 0:00:00][%mdl 512]} 34. Rhxe1 {[%emt 0:00:38]} Rxc4 {[%emt 0:00:00]} 35. Rxc2 {[%emt 0:00:16]} Rxc2 {[%emt 0:00:00][%mdl 4096] Endgame KRR-KRB} 36. Bd3 {[%emt 0:00:12]} Rxa2 {[%emt 0:00:00][%cal Oe3e2]} 37. Rxe3 {[%emt 0:00:14]} g6 {[%emt 0:00:00][%cal Bg7g6,Bg6h5][%mdl 32]} 38. h4 {[%emt 0:00:33]} Ra4 {[%emt 0:00:00]} 39. h5 {[%emt 0:00:05]} gxh5 {[%emt 0:00:00]} 40. Re7 {[%emt 0:00:35]} Raxf4 {[%emt 0:00:00]} 41. Rxh7+ {[%emt 0:00:13]} Kg8 {[%emt 0:00:00]} 42. Bc2 {[%emt 0:00:51]} Rg4+ {[%emt 0:00:00] Weighted Error Value: White=0.69/Black=0.14 (very precise)} 0-1

[Event "Charlotte IM-D May 2022"]
[Site "Charlotte"]
[Date "2022.05.08"]
[Round "8.5"]
[White "Kanli, Alperen"]
[Black "Zaloznyy, Mike"]
[Result "1/2-1/2"]
[ECO "A50"]
[WhiteElo "2173"]
[BlackElo "2125"]
[Annotator "TA"]
[PlyCount "49"]
[EventDate "2022.05.04"]
[EventType "tourn"]
[EventCountry "USA"]
[SourceTitle "playchess.com"]
[Source "ChessBase"]
[SourceQuality "1"]
[TimeControl "5400+30"]

{[%evp 9,49,-15,30,26,32,26,33,21,30,22,20,19,4,13,0,0,0,0,43,19,24,7,16,30,29,0,0,0,-6,-10,-18,-9,-14,-63,-53,-55,-62,-57,-61,-69,-46,-67]} 1. d4 {[%emt 0:00:02]} Nf6 {[%emt 0:03:59]} 2. c4 {[%emt 0:00:05]} b6 {[%emt 0:00:04]} 3. Nc3 {[%emt 0:00:10]} Bb7 {[%emt 0:00:19]} 4. Qc2 {[%emt 0:00:15]} d5 {[%emt 0:00:13]} 5. Bg5 {[%emt 0:00:14]} e6 {[%emt 0:00:14]} (5... dxc4 $5 {[%cal Rd8d4]} 6. Nf3 a6 $11) 6. cxd5 {[%emt 0:00:06] A50: Queen's Fianchetto Defence (1 d4 Nf6 2 c4 b6).} exd5 {[%emt 0:03:20]} 7. e3 {[%emt 0:00:06]} Be7 {[%emt 0:01:49]} 8. Bd3 {[%emt 0:00:17] White is slightly better.} h6 {[%emt 0:00:39]} 9. Bh4 {[%emt 0:00:01]} O-O {[%emt 0:00:19]} 10. Nge2 {[%emt 0:00:05]} c5 {[%emt 0:02:11]} 11. O-O {[%emt 0:00:12]} Nc6 {[%emt 0:05:22]} 12. a3 {[%emt 0:02:55] Against Nb4} c4 {[%emt 0:02:49]} 13. Bf5 {[%emt 0:00:23] [#]} Bc8 $146 {[%emt 0:03:07]} ({Predecessor:} 13... a6 14. f3 Re8 15. Rad1 b5 16. Bf2 b4 17. axb4 Nxb4 18. Qd2 Bf8 19. h3 Bc8 20. Bxc8 Qxc8 {1-0 (40) Azali,T (2110)-Fatima,S (1352) Tornelo INT 2021}) 14. Bxc8 {[%emt 0:10:09]} Rxc8 {[%emt 0:00:43]} 15. Qf5 {[%emt 0:02:47] Bxf6 is the strong threat.} Qd7 $1 {[%emt 0:12:28]} 16. Qxd7 {[%emt 0:04:59]} Nxd7 {[%emt 0:00:05]} 17. Bg3 {[%emt 0:00:26]} Nf6 {[%emt 0:00:06]} 18. Be5 {[%emt 0:00:18]} Nxe5 {[%emt 1:01:43]} 19. dxe5 {[%emt 0:00:11]} Ng4 {[%emt 0:00:00]} 20. Nxd5 {[%emt 0:01:15] Pair of Knights!} Bc5 {[%emt 0:00:00]} 21. e6 {[%emt 0:06:55]} (21. Rfd1 $11) 21... fxe6 $15 {[%emt 0:00:00] Black is slightly better.} 22. Ndc3 {[%emt 0:04:29] [#]} Nxf2 $1 {[%emt 0:00:00]} 23. Rxf2 {[%emt 0:01:14] Hoping for Nd4.} Bxe3 {[%emt 0:00:00][%mdl 64] Pin} 24. Nd1 {[%emt 0:00:04]} Bc5 {[%emt 0:00:00][%mdl 1088] Threatens to win with ...Rcd8. Pin. Black has compensation.} 25. Nec3 $1 {[%emt 0:08:30] Weighted Error Value: White=0.08 (flawless) /Black=0.06 (flawless)} 1/2-1/2

[Event "Charlotte IM-D May 2022"]
[Site "Charlotte"]
[Date "2022.05.09"]
[Round "9.1"]
[White "Zaloznyy, Mike"]
[Black "Rosenberg, Evan S"]
[Result "1/2-1/2"]
[ECO "A47"]
[WhiteElo "2125"]
[BlackElo "2035"]
[Annotator "TA"]
[PlyCount "128"]
[EventDate "2022.05.04"]
[EventType "tourn"]
[EventCountry "USA"]
[SourceTitle "playchess.com"]
[Source "ChessBase"]
[SourceQuality "1"]
[TimeControl "5400+30"]

{[%evp 9,128,-1,16,0,0,-4,48,36,50,47,55,29,80,58,43,47,79,6,78,74,79,98,87,89,85,51,252,252,248,260,242,0,0,0,0,0,0,-20,-24,-59,-53,-127,-116,-140,0,0,0,0,0,0,0,0,97,97,105,92,109,93,92,87,79,80,93,81,166,131,189,189,278,258,264,256,351,349,365,351,411,405,342,329,473,473,414,0,403,139,297,100,197,197,269,81,279,270,245,62,139,24,24,21,22,22,22,22,24,1,1,1,8,8,8,0,8,8,8,8,8,8,11,18,18]} 1. d4 {[%emt 0:04:56]} Nf6 {[%emt 0:00:00]} 2. Bf4 b6 {[%emt 1:31:30]} 3. e3 {[%emt 0:01:27]} Bb7 {[%emt 0:00:00]} 4. Nf3 Nh5 {[%emt 0:01:00]} 5. Bg5 {[%emt 1:26:37][%cal Bf4g5,Bg5h4,Bh4g3][%mdl 32]} h6 {[%emt 0:00:00]} 6. Bh4 {[%emt 0:00:00] A47: 1 d4 Nf6 2 Nf3 b6: Torre, London and Colle Systems.} g5 {[%emt 0:01:00]} 7. Nfd2 {[%emt 0:01:00] [#]} Nf6 {[%emt 0:00:00]} (7... Nf4 $1 $11) 8. Bg3 $14 {[%emt 0:00:30] White is slightly better.} d6 {[%emt 0:01:00] [#]} 9. h4 $146 {[%emt 0:00:30]} ({Predecessor:} 9. c4 Nbd7 10. Nc3 e6 11. e4 Bg7 12. h4 Qe7 13. Be2 O-O-O 14. a4 a5 15. O-O {0-1 (66) Subelj,J (2468)-Lodici,L (2537) Chess.com INT 2022}) 9... Bg7 {[%emt 0:00:00]} 10. c4 c5 {[%emt 0:00:00]} (10... e6 $11 {keeps the balance.}) 11. Nc3 cxd4 {[%emt 0:01:30]} 12. exd4 {[%emt 0:00:00]} a6 {[%emt 0:00:00]} 13. Qe2 ({White should play} 13. hxg5 $16 hxg5 14. Rxh8+ Bxh8 15. Qe2) 13... Nc6 {[%emt 0:01:00]} (13... g4 $1 $11) 14. hxg5 $16 {[%emt 0:02:30]} hxg5 {[%emt 0:00:30]} 15. Rxh8+ {[%emt 0:00:30]} Bxh8 {[%emt 0:00:30]} 16. Qe3 {[%emt 0:00:30] White is more active.} b5 {[%emt 0:00:00][%cal Bb6b5,Bb5b4,Bb4c3][%mdl 32]} 17. O-O-O (17. Qxg5 Nxd4 18. Qh4 Nc2+ 19. Kd1 Nxa1 $11) 17... Qa5 $2 {[%emt 0:01:00]} (17... Kf8 $14) 18. Bxd6 $18 {[%emt 0:00:00]} (18. cxb5 $6 axb5 19. Bxd6 (19. Bxb5 Kf8 $16) 19... b4 $18) 18... b4 {[%emt 0:00:00] [#]} 19. d5 $1 Ng4 {[%emt 0:01:00]} 20. Qxg5 {[%emt 0:00:00]} (20. Qh3 Bxc3 21. dxc6 (21. Qxg4 $2 Qxa2 22. Kc2 Bc8 $19) (21. bxc3 exd6 22. dxc6 Bxc6 $11) 21... Bxc6 22. bxc3 (22. Qxg4 $2 Qxa2 23. Kc2 Rd8 $19) 22... exd6 23. cxb4 (23. Qxg4 Qa3+ 24. Kc2 Ba4+ 25. Nb3 Qxa2+ 26. Kd3 Qxb3 $15) 23... Qxb4 $11) (20. Qe2 $18 bxc3 21. dxc6 cxb2+ 22. Kc2 Qc3+ 23. Kb1) 20... bxc3 $11 {[%emt 0:00:00]} 21. Qg8+ {[%emt 0:00:00]} Kd7 {[%emt 0:00:00][%cal Be8d7,Bd7d6,Bd6c6,Bc6b6][%mdl 32]} 22. Qxg4+ Kxd6 {[%emt 0:01:30]} 23. dxc6 {[%emt 0:00:00] Threatening mate with Qd7+. The board is on fire.} (23. Ne4+ Kc7 24. dxc6 cxb2+ 25. Kb1 Bxc6 26. Qg3+ Qe5 27. Qxe5+ Bxe5 $17) 23... cxd2+ {[%emt 0:00:00]} (23... cxb2+ $2 24. Kb1 Kxc6 25. Nb3 $18) 24. Rxd2+ {[%emt 0:00:00]} Kxc6 {[%emt 0:00:00] aiming for ...Bf6.} 25. Qd7+ {[%emt 0:00:00]} (25. c5 $1 $15 Rd8 26. Qe4+ Kc7 27. Qxe7+ Kc8 28. Rxd8+ Qxd8 29. Qxf7) 25... Kb6 $17 {[%emt 0:00:00]} 26. Qxe7 {[%emt 0:00:00]} Rc8 {[%emt 0:00:00]} (26... Qxa2 {gets mated.} 27. Qb4+ Ka7 28. Qc5+ Kb8 29. Rd8+) (26... Qe5 $1 $17 {[%cal Re5e7]} 27. Qxe5 Bxe5) 27. Rd7 $11 {[%emt 0:00:00]} Bc6 {[%emt 0:00:00]} 28. Rd8 {[%emt 0:00:00]} Be4 $1 {[%emt 0:03:00] Threatens to win with ...Qe1+. This bishop pair is nice.} 29. Qd6+ {[%emt 0:00:00]} Ka7 {[%emt 0:00:00]} (29... Rc6 $2 30. Qb8+ Kc5 31. Qa7+ Kb4 32. Qe7+ Qc5 33. Rb8+ Ka4 34. Qxe4 $18) 30. Qe7+ {[%emt 0:00:00]} Rc7 {[%emt 0:00:00]} (30... Kb6 $11 {remains equal.} 31. Rd6+ Bc6) 31. Qxe4 $40 {[%emt 0:00:00][%mdl 128] White attacks with force.} Bxb2+ {[%emt 0:01:30]} 32. Kd1 {[%emt 0:00:49] White wants to mate with Ra8+.} (32. Kxb2 Rb7+ 33. Kc1 (33. Qxb7+ Kxb7 34. Rd5 Qb6+ 35. Ka3 Qxf2 $17) 33... Qxd8 34. Qe3+ Qb6 $17) 32... Qa4+ {[%emt 0:00:00]} 33. Ke2 {[%emt 0:07:41] Intending Qa8+ and mate.} Qxc4+ {[%emt 0:01:00]} 34. Qxc4 {[%emt 0:00:00]} (34. Kf3 {looks sharper.} Qc3+ 35. Qe3+ Kb7 36. Rd6) 34... Rxc4 {[%emt 0:00:00][%mdl 4096] Endgame KRB-KRB} 35. Rd7+ {[%emt 0:00:00]} Kb6 {[%emt 0:01:00]} 36. Rxf7 {[%emt 0:00:00]} Rc1 {[%emt 0:00:30]} (36... Ra4 $16) 37. Rf3 {[%emt 0:00:00] Rb3+ is the strong threat.} Bc3 {[%emt 0:00:00]} (37... Bg7 $16 38. Rf7 Bd4) 38. g4 $18 {[%emt 0:00:00]} Ba5 {[%emt 0:00:00]} (38... Rc2+ $142 39. Kd1 Rd2+ 40. Kc1 Rxa2) 39. Rb3+ {[%emt 0:00:00]} Kc5 {[%emt 0:01:30]} 40. f4 {[%emt 0:00:00]} Re1+ {[%emt 0:00:30]} 41. Kf2 {[%emt 0:04:00]} Ra1 {[%emt 0:00:00]} 42. Bxa6 {[%emt 0:00:00] Hoping for Rb5+.} Rxa2+ {[%emt 0:00:00]} 43. Kf3 {[%emt 0:00:00]} Bd2 {[%emt 0:00:00]} 44. Bd3 {[%emt 0:00:00]} Ra4 {[%emt 0:00:00]} (44... Ra7 $142 45. Rb2 Bc3) 45. Be4 {[%emt 0:00:04]} Ra1 {[%emt 0:00:00]} 46. Bd3 {[%emt 0:01:29] Inhibits Rf1+.} (46. Rd3 $18 Rf1+ 47. Kg2 Rxf4 48. Kg3 $1 (48. Rxd2 Rxg4+ 49. Kf3 Rh4 $14)) 46... Kd4 $2 {[%emt 0:00:19][%mdl 8192]} (46... Ra4 $11 {and Black has nothing to worry.}) 47. f5 $2 {[%emt 0:00:20]} (47. g5 $18 {has better winning chances.}) 47... Rh1 $2 {[%emt 0:00:30]} (47... Bg5 $16 48. Be2 Ra2 49. Rb4+ Kc5 50. Rb5+ Kd4 51. Rb4+ Kc5 52. Rb5+ Kd4) 48. Kg2 $2 {[%emt 0:00:30]} (48. f6 $18 {is the precise move to win.}) 48... Rh4 {[%emt 0:00:20]} (48... Rh6 $16 49. Bb1 Ke5) 49. Be2 $1 {[%emt 0:00:11] Strongly threatening Rd3+.} Bf4 {[%emt 0:03:21]} (49... Bg5 $142 50. Rb4+ Ke5) 50. Rb7 $2 {[%emt 0:01:14]} (50. f6 $18 {is more deadly.}) 50... Rh2+ $2 {[%emt 0:00:00]} (50... Be5 $16) 51. Kf3 {[%emt 0:00:01]} Bg5 {[%emt 0:00:00] [#]} 52. Bb5 $2 {[%emt 0:00:28]} (52. Rg7 $1 $18 {[%cal Rg7g5]} Bf6 53. Ra7) 52... Ke5 {[%emt 0:00:00] [#]} (52... Rh3+ $14 53. Kg2 Rb3) 53. Rb6 {[%emt 0:00:00]} (53. Bf1 $1 $16) 53... Rh3+ $11 {[%emt 0:00:00]} 54. Kg2 {[%emt 0:00:24]} Rb3 {[%emt 0:00:00]} 55. Re6+ {[%emt 0:00:16]} Kf4 {[%emt 0:00:00]} 56. Be2 {[%emt 0:00:06]} Re3 {[%emt 0:00:00]} 57. Kf2 {[%emt 0:01:02]} Rxe6 {[%emt 0:00:00] The position is equal.} 58. fxe6 {[%emt 0:00:30] KB-KB} Be7 {[%emt 0:04:30]} 59. Kg2 {[%emt 0:00:56]} Ke5 {[%emt 0:00:00]} 60. Kh3 {[%emt 0:00:08]} Kf4 {[%emt 0:01:00]} 61. Bd3 {[%emt 0:00:07]} Ke3 {[%emt 0:00:00]} 62. Bf5 {[%emt 0:00:04]} Kf4 {[%emt 0:00:00]} 63. Kg2 Bc5 {[%emt 0:00:00]} 64. Kf1 $1 {[%emt 0:00:00]} Be7 {[%emt 0:00:00] Black defended with fortune.  Weighted Error Value: White=0.43/Black=0.50} 1/2-1/2

[Event "Charlotte IM-D May 2022"]
[Site "Charlotte"]
[Date "2022.05.09"]
[Round "9.2"]
[White "Matros, Alexander"]
[Black "Kanli, Alperen"]
[Result "1/2-1/2"]
[ECO "D26"]
[WhiteElo "2339"]
[BlackElo "2173"]
[Annotator "TA"]
[PlyCount "43"]
[EventDate "2022.05.04"]
[EventType "tourn"]
[EventCountry "USA"]
[SourceTitle "playchess.com"]
[Source "ChessBase"]
[SourceQuality "1"]
[TimeControl "5400+30"]

{[%evp 13,30,23,25,33,45,38,48,39,41,20,38,22,41,28,24,11,14,31,27]} 1. d4 {[%emt 0:00:03]} d5 {[%emt 0:00:04]} 2. c4 {[%emt 0:00:07]} dxc4 {[%emt 0:00:04]} 3. Nf3 {[%emt 0:00:09]} Nf6 {[%emt 0:00:07]} 4. e3 {[%emt 0:00:07]} e6 {[%emt 0:00:07]} 5. Bxc4 {[%emt 0:00:08]} a6 {[%emt 0:00:04]} 6. O-O {[%emt 0:00:25]} b5 {[%emt 0:00:11]} 7. Bd3 {[%emt 0:00:30] 7.Be2 is the hot move.} Bb7 {[%emt 0:00:08]} 8. Qe2 {[%emt 0:00:35] D26: Queen's Gambit Accepted: 4 e3 e6 5 Bxc5 c5 sidelines.} Nbd7 {[%emt 0:00:33]} 9. a4 {[%emt 0:00:42]} b4 {[%emt 0:00:16]} 10. e4 {[%emt 0:00:11][%cal Be3e4,Be4e5][%mdl 32]} Be7 {[%emt 0:00:43]} 11. Nbd2 {[%emt 0:00:19]} c5 {[%emt 0:00:10]} 12. e5 {[%emt 0:00:29]} Nd5 {[%emt 0:00:10]} 13. Nb3 {[%emt 0:00:24]} cxd4 {[%emt 0:00:48]} 14. Nfxd4 {[%emt 0:01:47]} Qb8 {[%emt 0:05:29]} 15. Re1 {[%emt 0:00:37]} O-O {[%emt 0:05:10] [#]  Weighted Error Value: White=0.06 (flawless) /Black=0.02 (flawless)} {Predecessor:} 16. h4 $146 Nc5 17. Bb1 Qc7 18. h5 Rac8 19. Nxc5 Bxc5 20. Qd3 g6 21. Nb3 Bb6 22. a5 {½-½ (34) Bleker,F (2404)-Anokhin,Y (2380) ICCF email 2014} 1/2-1/2